fUST/lending_fUST_20240616
["ID","MTS","AMOUNT","RATE_DAILY","PERIOD"]
[329602125,1718495445537,-542.000522,0.00016438,2]
[329602126,1718495445559,-500.0,0.00016438,2]
[329602127,1718495445604,-754.52,0.00016438,2]
[329602128,1718495445638,-500.0,0.00016438,2]
[329602129,1718495445678,-506.51533363,0.00016438,2]
[329602130,1718495445720,-151.0,0.00016438,2]
[329602131,1718495445756,-500.0,0.00016438,2]
[329602132,1718495445776,-151.0,0.00016438,2]
[329602133,1718495445788,-151.0,0.00016438,2]
[329602134,1718495445800,-151.0,0.00016438,2]
[329602135,1718495445819,-151.0,0.00016438,2]
[329602136,1718495445840,-151.0,0.00016438,2]
[329602137,1718495445865,-151.0,0.00016438,2]
[329602138,1718495445900,-151.0,0.00016438,2]
[329602139,1718495445931,-566.45521637,0.00016438,2]
[329602140,1718495445958,-500.0,0.00016438,2]
[329602141,1718495445970,-500.0,0.00016438,2]
[329602142,1718495446026,-500.0,0.00016438,2]
[329602143,1718495446039,-500.0,0.00016438,2]
[329602144,1718495446066,-500.0,0.00016438,2]
[329602145,1718495446124,-151.0,0.00016438,2]
[329602146,1718495446138,-500.0,0.00016438,2]
[329602147,1718495446186,-500.0,0.00016438,2]
[329602148,1718495446220,-24554.27544569,0.000165,15]
[329602150,1718495446253,-153.0,0.000165,2]
[329602152,1718495446313,-153.0,0.000165,2]
[329602153,1718495446343,-292.6897656,0.000165,2]
[329602155,1718495446355,-153.0,0.000165,2]
[329602158,1718495446426,-153.0,0.000165,2]
[329602160,1718495446446,-205.4705528,0.000165,2]
[329602161,1718495446482,-292.6897656,0.000165,2]
[329602163,1718495446495,-153.0,0.000165,2]
[329602165,1718495446513,-153.0,0.000165,2]
[329602167,1718495446572,-153.0,0.000165,2]
[329602168,1718495446629,-205.4705528,0.000165,2]
[329602169,1718495446689,-153.0,0.000165,2]
[329602170,1718495446702,-153.0,0.000165,2]
[329602171,1718495446739,-153.0,0.000165,2]
[329602173,1718495446847,-292.6897656,0.000165,2]
[329602174,1718495446858,-307.3298821,0.000165,2]
[329602175,1718495446871,-205.4705528,0.000165,2]
[329602176,1718495446899,-153.0,0.000165,2]
[329602177,1718495446912,-153.0,0.000165,2]
[329602178,1718495446948,-151.0,0.000165,2]
[329602179,1718495446976,-151.0,0.0001658,2]
[329602180,1718495446998,-153.0,0.000166,2]
[329602181,1718495447030,-153.0,0.000166,2]
[329602182,1718495447056,-153.0,0.000166,2]
[329602183,1718495447088,-306.0,0.000166,2]
[329602184,1718495447100,-151.0,0.000166,2]
[329602185,1718495447148,-196.674856,0.000166,2]
[329602186,1718495447197,-1750.0,0.00016621,2]
[329602187,1718495447239,-153.0,0.000167,2]
[329602188,1718495447269,-410.5613638,0.000167,2]
[329602189,1718495447283,-153.0,0.000167,2]
[329602190,1718495447354,-500.0,0.00016712,2]
[329602191,1718495447369,-500.0,0.00016712,2]
[329602192,1718495447382,-500.0,0.00016712,2]
[329602193,1718495447417,-500.0,0.00016712,2]
[329602194,1718495447490,-500.0,0.00016712,2]
[329602195,1718495447524,-1070.84,0.00016712,2]
[329602196,1718495447537,-500.0,0.00016712,2]
[329602197,1718495447559,-500.0,0.00016712,2]
[329602198,1718495447578,-500.0,0.00016712,2]
[329602199,1718495447603,-184.201052,0.00016712,2]
[329602200,1718495447637,-500.0,0.00016712,2]
[329602201,1718495447649,-543.27632955,0.00016712,2]
[329602202,1718495447894,-500.0,0.00016712,2]
[329602204,1718495447936,-500.0,0.00016712,2]
[329602205,1718495448010,-742.49,0.00016712,2]
[329602206,1718495448029,-1802.29,0.00016712,2]
[329602207,1718495448098,-685.14,0.00016712,2]
[329602208,1718495448119,-1248.05,0.00016712,2]
[329602210,1718495448189,-500.0,0.00016712,2]
[329602212,1718495448207,-2233.29,0.00016712,2]
[329602214,1718495448219,-721.53,0.00016712,2]
[329602216,1718495448268,-500.0,0.00016712,2]
[329602217,1718495448315,-2187.71,0.00016712,2]
[329602218,1718495448390,-814.79,0.00016712,2]
[329602219,1718495448443,-500.0,0.00016712,2]
[329602220,1718495448457,-921.6,0.00016712,2]
[329602221,1718495448472,-500.0,0.00016712,2]
[329602222,1718495448489,-500.0,0.00016712,2]
[329602223,1718495448522,-500.0,0.00016712,2]
[329602224,1718495448549,-1451.34,0.00016712,2]
[329602225,1718495448579,-2109.45,0.00016712,2]
[329602226,1718495448605,-754.52,0.00016712,2]
[329602227,1718495448620,-151.0,0.00016712,2]
[329602228,1718495448631,-151.0,0.00016712,2]
[329602229,1718495448668,-151.0,0.00016712,2]
[329602230,1718495448680,-500.0,0.00016712,2]
[329602231,1718495448725,-151.0,0.00016722,2]
[329602232,1718495448737,-153.0,0.000168,2]
[329602233,1718495448752,-153.0,0.000168,2]
[329602234,1718495448869,-153.0,0.00016803,2]
[329602235,1718495448881,-205.4705528,0.00016803,2]
[329602236,1718495448913,-205.4705528,0.00016803,2]
[329602237,1718495448926,-409.6857332,0.00016803,2]
[329602238,1718495448986,-153.0,0.00016803,2]
[329602239,1718495449003,-227.1115978,0.00016803,2]
[329602240,1718495449036,-153.0,0.00016803,2]
[329602241,1718495449152,-153.0,0.00016803,2]
[329602242,1718495449194,-153.0,0.00016803,2]
[329602243,1718495449232,-151.0,0.00016864,2]
[329602244,1718495449272,-620.00000239,0.00016975,2]
[329602245,1718495449315,-500.0,0.00016986,2]
[329602246,1718495449364,-500.0,0.00016986,2]
[329602247,1718495449384,-500.0,0.00016986,2]
[329602248,1718495449407,-500.0,0.00016986,2]
[329602249,1718495449435,-500.0,0.00016986,2]
[329602250,1718495449458,-1070.84,0.00016986,2]
[329602251,1718495449521,-209.57782184,0.00016986,2]
[329602252,1718495449577,-500.0,0.00016986,2]
[329602253,1718495449638,-500.0,0.00016986,2]
[329602254,1718495449649,-500.0,0.00016986,2]
[329602255,1718495449693,-742.49,0.00016986,2]
[329602256,1718495449746,-1802.29,0.00016986,2]
[329602257,1718495449758,-685.14,0.00016986,2]
[329602258,1718495449790,-1248.05,0.00016986,2]
[329602259,1718495449833,-500.0,0.00016986,2]
[329602260,1718495449845,-2233.29,0.00016986,2]
[329602261,1718495449857,-500.0,0.00016986,2]
[329602262,1718495449875,-721.53,0.00016986,2]
[329602263,1718495449917,-1899.503048,0.00016986,2]
[329602275,1718495452314,-692.14198518,0.00010959,2]
[329602276,1718495452342,-105.55801482,0.00010959,2]
[329602277,1718495452362,-566.40968636,0.00016438,2]
[329602278,1718495452420,-500.0,0.00016438,2]
[329602279,1718495452441,-814.79,0.00016986,2]
[329602280,1718495452454,-500.0,0.00016986,2]
[329602281,1718495452493,-921.6,0.00016986,2]
[329602282,1718495452522,-500.0,0.00016986,2]
[329602283,1718495452534,-500.0,0.00016986,2]
[329602284,1718495452547,-384.38858474,0.00016986,2]
[329602285,1718495452566,-1451.34,0.00016986,2]
[329602286,1718495452592,-2109.45,0.00016986,2]
[329602287,1718495452614,-754.52,0.00016986,2]
[329602288,1718495452633,-151.0,0.00016986,2]
[329602289,1718495452653,-151.0,0.00016986,2]
[329602290,1718495452688,-500.0,0.00016986,2]
[329602291,1718495452702,-151.0,0.00017006,2]
[329602292,1718495452721,-151.0,0.00017148,2]
[329602293,1718495452733,-1404.04748655,0.00017259,2]
[329602294,1718495452744,-500.0,0.0001726,2]
[329602295,1718495452755,-500.0,0.0001726,2]
[329602296,1718495452768,-500.0,0.0001726,2]
[329602297,1718495452779,-500.0,0.0001726,2]
[329602298,1718495452812,-1070.84,0.0001726,2]
[329602299,1718495452825,-500.0,0.0001726,2]
[329602300,1718495452837,-345.88302052,0.0001726,2]
[329602301,1718495452853,-500.0,0.0001726,2]
[329602302,1718495452912,-742.49,0.0001726,2]
[329602303,1718495452926,-1802.29,0.0001726,2]
[329602304,1718495452942,-685.14,0.0001726,2]
[329602305,1718495452973,-1248.05,0.0001726,2]
[329602306,1718495453033,-500.0,0.0001726,2]
[329602307,1718495453045,-2233.29,0.0001726,2]
[329602308,1718495453055,-500.0,0.0001726,2]
[329602309,1718495453068,-721.53,0.0001726,2]
[329602310,1718495453112,-814.79,0.0001726,2]
[329602311,1718495453145,-500.0,0.0001726,2]
[329602312,1718495453157,-921.6,0.0001726,2]
[329602313,1718495453173,-500.0,0.0001726,2]
[329602314,1718495453191,-500.0,0.0001726,2]
[329602315,1718495453236,-1451.34,0.0001726,2]
[329602316,1718495453258,-2109.45,0.0001726,2]
[329602317,1718495453304,-754.52,0.0001726,2]
[329602318,1718495453328,-500.0,0.0001726,2]
[329602319,1718495453340,-151.0,0.0001729,2]
[329602320,1718495453353,-151.0,0.00017432,2]
[329602321,1718495453392,-2000.0,0.00017434,2]
[329602322,1718495453432,-810.06405385,0.000175,3]
[329602323,1718495453444,-155.0,0.0001751,2]
[329602324,1718495453456,-500.0,0.00017534,2]
[329602325,1718495453478,-483.11,0.00017534,2]
[329602326,1718495453508,-623.93,0.00017534,2]
[329602327,1718495453524,-500.0,0.00017534,2]
[329602328,1718495453573,-1070.84,0.00017534,2]
[329602329,1718495453588,-500.0,0.00017534,2]
[329602330,1718495453601,-742.49,0.00017534,2]
[329602331,1718495453628,-1802.29,0.00017534,2]
[329602332,1718495453695,-685.14,0.00017534,2]
[329602333,1718495453721,-1248.05,0.00017534,2]
[329602334,1718495453736,-500.0,0.00017534,2]
[329602335,1718495453773,-2233.29,0.00017534,2]
[329602336,1718495453820,-500.0,0.00017534,2]
[329602337,1718495453832,-721.53,0.00017534,2]
[329602338,1718495453861,-814.79,0.00017534,2]
[329602339,1718495453876,-336.48785467,0.00017534,2]
[329602340,1718495453904,-921.6,0.00017534,2]
[329602341,1718495453930,-500.0,0.00017534,2]
[329602342,1718495454008,-500.0,0.00017534,2]
[329602343,1718495454041,-1451.34,0.00017534,2]
[329602344,1718495454091,-2109.45,0.00017534,2]
[329602345,1718495454103,-754.52,0.00017534,2]
[329602346,1718495454117,-500.0,0.00017534,2]
[329602347,1718495454130,-272.0560651,0.00017625,2]
[329602348,1718495454166,-153.0,0.00017625,2]
[329602349,1718495454178,-71805.89908771,0.00017773,2]
[329602350,1718495658339,3000.0,0.00023,30]
[329602353,1718496234532,3000.0,0.00023,30]
[329602388,1718496634845,-657.57,0.00010959,2]
[329602389,1718496634874,-386.866894,0.00015565,2]
[329602390,1718496634924,-93.67681058,0.00016164,2]
[329602407,1718496646408,-114.83641142,0.00016164,2]
[329602408,1718496646423,-500.0,0.00016438,2]
[329602409,1718496646436,-403.74572917,0.00016438,2]
[329602410,1718496646459,-500.0,0.00016438,2]
[329602411,1718496646513,-500.0,0.00016438,2]
[329602412,1718496646527,-497.28059491,0.00016438,2]
[329602413,1718496646539,-500.0,0.00016438,2]
[329602414,1718496646572,-283.84793327,0.00016438,2]
[329602422,1718496646996,-216.15206673,0.00016438,2]
[329602424,1718496647016,-500.0,0.00016438,2]
[329602425,1718496647092,-500.0,0.00016438,2]
[329602427,1718496647136,-513.10350154,0.00016438,2]
[329602429,1718496647174,-555.28,0.00016438,2]
[329602430,1718496647258,-500.0,0.00016438,2]
[329602431,1718496647303,-500.0,0.00016438,2]
[329602432,1718496647368,-500.0,0.00016438,2]
[329602433,1718496647397,-398.68774559,0.00016438,2]
[329602434,1718496647408,-500.0,0.00016438,2]
[329602435,1718496647421,-500.0,0.00016438,2]
[329602436,1718496647449,-378.59,0.00016438,2]
[329602437,1718496647513,-1444.69,0.00016438,2]
[329602438,1718496647568,-500.0,0.00016438,2]
[329602440,1718496647614,-210.57444121,0.00016438,2]
[329602454,1718496650425,-289.42555879,0.00016438,2]
[329602455,1718496650436,-500.0,0.00016438,2]
[329602456,1718496650448,-18.17277993,0.00016438,2]
[329602457,1718496650466,-324.76054633,0.00016438,2]
[329602458,1718496650482,-157.06667374,0.00016438,2]
[329602459,1718496650496,-500.0,0.00016438,2]
[329602461,1718496650522,-500.0,0.00016438,2]
[329602462,1718496650540,-500.0,0.00016438,2]
[329602463,1718496650552,-424.91424621,0.00016438,2]
[329602464,1718496650573,-500.0,0.00016438,2]
[329602465,1718496650583,-271.53159734,0.00016438,2]
[329602466,1718496650596,-500.0,0.00016712,2]
[329602467,1718496650616,-70.9251728,0.00016712,2]
[329602468,1718496650672,-484.3548272,0.00016712,2]
[329602469,1718496650700,-500.0,0.00016712,2]
[329602470,1718496650744,-1444.69,0.00016712,2]
[329602471,1718496650756,-500.0,0.00016754,2]
[329602472,1718496650806,-477.5,0.00016754,2]
[329602473,1718496650832,-500.0,0.00016754,2]
[329602474,1718496650888,-500.0,0.00016754,2]
[329602475,1718496650902,-500.0,0.00016754,2]
[329602476,1718496650934,-425.64234489,0.00016754,2]
[329602477,1718496650946,-199.61115087,0.00016754,2]
[329602478,1718496650976,-500.0,0.00016754,2]
[329602479,1718496650992,-589.34499721,0.00016754,2]
[329602480,1718496651016,-500.0,0.00016754,2]
[329602482,1718496651037,-1768.02,0.00016754,2]
[329602484,1718496651048,-500.0,0.00016754,2]
[329602485,1718496651060,-500.0,0.00016754,2]
[329602488,1718496651112,-913.92,0.00016754,2]
[329602493,1718496651203,-500.0,0.00016754,2]
[329602494,1718496651228,-1053.23,0.00016754,2]
[329602496,1718496651304,-988.04,0.00016754,2]
[329602500,1718496651321,-500.0,0.00016754,2]
[329602503,1718496651345,-736.31,0.00016754,2]
[329602506,1718496651368,-1750.0,0.00016755,2]
[329602508,1718496651392,-2372.8894264,0.00016833,2]
[329602509,1718496651405,-620.00000011,0.00016933,2]
[329602511,1718496651417,-500.0,0.00016984,2]
[329602512,1718496651431,-645.04,0.00016984,2]
[329602513,1718496651448,-500.0,0.00016984,2]
[329602514,1718496651461,-3028.27,0.00016984,2]
[329602515,1718496651477,-500.0,0.00016984,2]
[329602516,1718496651500,-1426.81,0.00016985,2]
[329602517,1718496651523,-542.4,0.00016985,2]
[329602518,1718496651548,-811.72,0.00016985,2]
[329602519,1718496651570,-741.77,0.00016985,2]
[329602520,1718496651597,-663.3881635,0.00016985,2]
[329602521,1718496895511,3000.0,0.00023,30]
[329602522,1718497002167,7974.11,0.00025,60]
[329602523,1718497167792,310.0,0.00025,60]
[329602525,1718497442409,3000.0,0.00023,30]
[329602537,1718497836023,-1924.28967937,0.00015484,2]
[329602538,1718497836033,-260.151566,0.00015485,2]
[329602539,1718497836063,-5.43183164,0.00015875,2]
[329602553,1718497841980,-2638.62276465,0.00015875,2]
[329602554,1718497842065,-95.54657565,0.00015877,2]
[329602555,1718497842094,-5489.2303144,0.00015877,2]
[329602556,1718497842117,-12144.28217135,0.00015877,2]
[329602557,1718497842134,-221.046868,0.00016164,2]
[329602558,1718497842152,-4018.6656692,0.00016714,2]
[329602559,1718497842219,-1252.02445577,0.00016714,2]
[329602560,1718497842247,-500.0,0.00016754,2]
[329602561,1718497842352,-500.0,0.00016754,2]
[329602562,1718497842365,-500.0,0.00016754,2]
[329602563,1718497842388,-570.41,0.00016754,2]
[329602564,1718497842409,-500.0,0.00016754,2]
[329602565,1718497842433,-500.62149315,0.00016754,2]
[329602566,1718497842492,-500.0,0.00016754,2]
[329602567,1718497842504,-500.0,0.00016754,2]
[329602568,1718497842519,-500.0,0.00016754,2]
[329602569,1718497842536,-500.0,0.00016754,2]
[329602570,1718497842563,-236.38660562,0.00016859,2]
[329602612,1718497851659,-642.22318542,0.00016858,2]
[329602623,1718498018307,5000.0,0.00025,60]
[329602624,1718498037921,3000.0,0.00023,30]
[329602625,1718498073035,10000.0,0.00023,30]
[329602626,1718498089415,10000.0,0.00023,30]
[329602627,1718498107556,10000.0,0.00025,60]
[329602629,1718498117076,10000.0,0.00025,60]
[329602630,1718498136390,2205.0,0.00023,30]
[329602631,1718498221077,10000.0,0.00023,30]
[329602633,1718498277175,10000.0,0.00025,60]
[329602634,1718498638512,3000.0,0.00023,30]
[329602678,1718499040660,-1924.28967937,0.00016163,2]
[329602681,1718499040675,-209.994524,0.00016164,2]
[329602682,1718499040686,-4532.84908975,0.00016617,2]
[329602684,1718499040715,-412.80292201,0.00016617,2]
[329602697,1718499041176,-325.03811321,0.00016617,2]
[329602699,1718499041215,-25907.10574433,0.00016709,2]
[329602701,1718499041233,-2902.09,0.00016854,2]
[329602702,1718499041257,-500.0,0.00016854,2]
[329602704,1718499041271,-500.0,0.00016854,2]
[329602705,1718499041293,-500.0,0.00016855,2]
[329602706,1718499041310,-500.0,0.00016855,2]
[329602707,1718499041389,-500.0,0.00016855,2]
[329602708,1718499041415,-500.0,0.00016855,2]
[329602709,1718499041436,-500.0,0.00016855,2]
[329602710,1718499041457,-500.0,0.00016855,2]
[329602711,1718499041504,-173.57253023,0.00016855,2]
[329602712,1718499041522,-500.0,0.00016855,2]
[329602713,1718499041533,-500.0,0.00016855,2]
[329602714,1718499041549,-500.0,0.00016855,2]
[329602715,1718499041576,-500.0,0.00016855,2]
[329602716,1718499041587,-1553.15,0.00016855,2]
[329602717,1718499041600,-875.84,0.00016855,2]
[329602718,1718499041612,-262.21209486,0.00016855,2]
[329602719,1718499041644,-842.88790514,0.00016855,2]
[329602720,1718499041659,-500.0,0.00016855,2]
[329602721,1718499041672,-618.17,0.00016855,2]
[329602722,1718499041692,-500.0,0.00016855,2]
[329602723,1718499041704,-500.0,0.00016855,2]
[329602724,1718499041723,-591.79,0.00016855,2]
[329602725,1718499041736,-500.0,0.00016855,2]
[329602726,1718499041762,-500.0,0.00016855,2]
[329602727,1718499041789,-500.0,0.00016855,2]
[329602728,1718499041824,-500.0,0.00016855,2]
[329602729,1718499041836,-500.0,0.00016855,2]
[329602730,1718499041848,-500.0,0.00016855,2]
[329602731,1718499041859,-500.0,0.00016855,2]
[329602732,1718499041884,-519.26423751,0.00016855,2]
[329602733,1718499041899,-500.0,0.00016855,2]
[329602734,1718499041910,-705.63,0.00016855,2]
[329602735,1718499041932,-216.86112586,0.00016855,2]
[329602804,1718499046887,-283.13887414,0.00016855,2]
[329602806,1718499046916,-500.0,0.00016855,2]
[329602807,1718499046948,-261.91979643,0.00016856,2]
[329602808,1718499046965,-800.49132943,0.00016856,2]
[329602811,1718499046986,-144.97709932,0.00016856,2]
[329602813,1718499047015,-309.92252015,0.00016856,2]
[329602815,1718499047052,-780.16038053,0.00016856,2]
[329602853,1718499054477,-511.1056432,0.00016754,2]
[329602855,1718499054499,-1783.58676051,0.00016754,2]
[329602857,1718499054519,-500.0,0.00016854,2]
[329602859,1718499054545,-500.0,0.00016855,2]
[329602861,1718499054565,-186.54347268,0.00016856,2]
[329602862,1718499054578,-574.98619068,0.00016856,2]
[329602864,1718499054612,-629.67397147,0.00016856,2]
[329602866,1718499054624,-1911.54148934,0.00016856,2]
[329602867,1718499054635,-692.0586622,0.00016856,2]
[329602869,1718499054647,-178.64166144,0.00016856,2]
[329602871,1718499054692,-391.65940167,0.00016856,2]
[329602873,1718499054712,-1281.10807788,0.00016856,2]
[329602875,1718499054740,-3855.27615806,0.00016856,2]
[329602876,1718499054773,-269.15969614,0.00016856,2]
[329602878,1718499054787,-1341.79550096,0.00016857,2]
[329602880,1718499054805,-515.61728899,0.00016857,2]
[329602882,1718499054817,-215.86209911,0.00016857,2]
[329602884,1718499054856,-190.4326803,0.00016857,2]
[329602887,1718499054903,-411.00285074,0.00016857,2]
[329602889,1718499054918,-1367.36,0.00016857,2]
[329602891,1718499054931,-519.8,0.00016857,2]
[329602893,1718499054969,-854.75,0.00016857,2]
[329602895,1718499054982,-841.59,0.00016857,2]
[329602897,1718499055020,-500.0,0.00016857,2]
[329602898,1718499055046,-500.0,0.00016857,2]
[329602900,1718499055059,-500.0,0.00016857,2]
[329602903,1718499055077,-2704.28,0.00016857,2]
[329602904,1718499055101,-9634.24850186,0.00016858,2]
[329602906,1718499055140,-552.39710422,0.00016858,2]
[329602908,1718499055151,-9574.49995823,0.00016859,13]
[329602923,1718499232156,3000.0,0.00023,30]
[329602924,1718499685573,-1924.28967937,0.00014999,2]
[329602925,1718499725809,160.0,0.00019993,31]
[329602926,1718499726140,160.0,0.00019961,30]
[329602927,1718499727065,160.0,0.0001993,29]
[329602928,1718499727415,160.0,0.00019899,28]
[329602929,1718499727895,160.0,0.00019868,27]
[329602930,1718499728175,160.0,0.00019837,26]
[329602931,1718499729145,160.0,0.00019805,25]
[329602932,1718499729519,160.0,0.00019774,24]
[329602933,1718499729845,160.0,0.00019743,23]
[329602934,1718499730369,160.0,0.00019712,22]
[329602935,1718499730412,1101.53149693,0.00015,2]
[329602936,1718499730642,160.0,0.00019681,21]
[329602937,1718499733117,2096.53889493,0.00014999,2]
[329602938,1718499735314,3617.03875472,0.00014999,2]
[329602939,1718499747392,2096.53889493,0.00014999,2]
[329602940,1718499753354,3617.03875472,0.00014999,2]
[329602941,1718499763138,2096.53889493,0.00014999,2]
[329602942,1718499771342,3617.03875472,0.00014999,2]
[329602943,1718499785203,1738.67692955,0.00014999,2]
[329602944,1718499791313,3617.03875472,0.00014999,2]
[329602945,1718499807322,3617.03875472,0.00014999,2]
[329602946,1718499829324,3617.03875472,0.00014999,2]
[329602947,1718499842276,16200.27458094,0.00014999,2]
[329602948,1718499845338,3617.03875472,0.00014999,2]
[329602949,1718499854162,16200.27458094,0.00014999,2]
[329602950,1718499855407,3000.0,0.00023,30]
[329602951,1718499865340,262.83531855,0.00014999,2]
[329602952,1718499870206,15204.6963197,0.00014999,2]
[329602953,1718500165491,15000.0,0.00025,60]
[329602954,1718500170723,15000.0,0.00025,60]
[329602955,1718500194537,5000.0,0.00025,60]
[329602956,1718500210370,2749.1,0.00025,60]
[329603095,1718500243258,-618.74622242,0.00016163,2]
[329603097,1718500243622,-1305.54345695,0.00016163,2]
[329603098,1718500243636,-199.494797,0.00016164,2]
[329603099,1718500243648,-655.52785712,0.00016665,2]
[329603136,1718500248154,-4615.16226785,0.00016665,2]
[329603139,1718500248202,-374.89577024,0.00016852,2]
[329603141,1718500248219,-394.24290711,0.00016853,2]
[329603143,1718500248251,-500.0,0.00016853,2]
[329603145,1718500248263,-500.0,0.00016853,2]
[329603147,1718500248278,-500.0,0.00016853,2]
[329603149,1718500248292,-500.0,0.00016853,2]
[329603151,1718500248307,-500.0,0.00016853,2]
[329603153,1718500248321,-500.0,0.00016853,2]
[329603156,1718500248340,-624.62,0.00016853,2]
[329603157,1718500248371,-500.0,0.00016853,2]
[329603159,1718500248384,-500.0,0.00016853,2]
[329603161,1718500248404,-500.0,0.00016853,2]
[329603163,1718500248419,-500.0,0.00016853,2]
[329603165,1718500248435,-500.0,0.00016853,2]
[329603167,1718500248447,-500.0,0.00016853,2]
[329603169,1718500248460,-509.8123844,0.00016853,2]
[329603171,1718500248475,-2910.17,0.00016853,2]
[329603173,1718500248512,-526.40202534,0.00016854,2]
[329603176,1718500248537,-500.49382646,0.00016854,2]
[329603177,1718500248552,-500.0,0.00016854,2]
[329603179,1718500248565,-500.0,0.00016854,2]
[329603180,1718500248585,-500.0,0.00016854,2]
[329603183,1718500248598,-500.0,0.00016854,2]
[329603185,1718500248637,-500.0,0.00016854,2]
[329603187,1718500248668,-500.0,0.00016854,2]
[329603189,1718500248683,-500.0,0.00016854,2]
[329603191,1718500248699,-500.0,0.00016854,2]
[329603193,1718500248722,-500.0,0.00016854,2]
[329603195,1718500248739,-500.0,0.00016854,2]
[329603197,1718500248778,-500.0,0.00016854,2]
[329603198,1718500248805,-500.0,0.00016854,2]
[329603200,1718500248836,-500.0,0.00016854,2]
[329603202,1718500248852,-500.0,0.00016854,2]
[329603203,1718500248874,-500.0,0.00016854,2]
[329603205,1718500248885,-500.0,0.00016854,2]
[329603207,1718500248908,-500.0,0.00016854,2]
[329603209,1718500248927,-500.0,0.00016854,2]
[329603210,1718500248960,-500.0,0.00016854,2]
[329603212,1718500248975,-151.0,0.00016854,2]
[329603214,1718500248990,-500.0,0.00016854,2]
[329603217,1718500249021,-500.0,0.00016854,2]
[329603219,1718500249054,-541.75930841,0.00016854,2]
[329603221,1718500249068,-500.0,0.00016854,2]
[329603223,1718500249081,-500.0,0.00016854,2]
[329603225,1718500249104,-1706.16,0.00016854,2]
[329603227,1718500249117,-500.0,0.00016854,2]
[329603229,1718500249132,-500.0,0.00016854,2]
[329603231,1718500249144,-500.0,0.00016854,2]
[329603233,1718500249156,-151.0,0.00016854,2]
[329603235,1718500249167,-881.01,0.00016854,2]
[329603237,1718500249179,-500.0,0.00016854,2]
[329603239,1718500249195,-500.0,0.00016854,2]
[329603241,1718500249213,-500.0,0.00016854,2]
[329603243,1718500249225,-1151.98,0.00016854,2]
[329603245,1718500249243,-500.0,0.00016854,2]
[329603247,1718500249257,-500.0,0.00016854,2]
[329603250,1718500249274,-658.68,0.00016854,2]
[329603252,1718500249312,-500.0,0.00016854,2]
[329603254,1718500249344,-500.0,0.00016854,2]
[329603257,1718500249372,-447.04823096,0.00016854,2]
[329603259,1718500249401,-943.05,0.00016854,2]
[329603260,1718500249413,-1507.65,0.00016854,2]
[329603262,1718500249424,-500.0,0.00016854,2]
[329603264,1718500249439,-500.0,0.00016854,2]
[329603266,1718500249453,-500.0,0.00016854,2]
[329603268,1718500249466,-500.0,0.00016854,2]
[329603270,1718500249478,-339.15500195,0.00016854,2]
[329603279,1718500249654,-500.0,0.00016854,2]
[329603281,1718500249676,-500.0,0.00016854,2]
[329603282,1718500249690,-500.0,0.00016854,2]
[329603284,1718500249701,-500.0,0.00016854,2]
[329603286,1718500249715,-2732.64,0.00016854,2]
[329603288,1718500249729,-500.0,0.00016854,2]